fUSD/lending_fUSD_20260607
["ID","MTS","AMOUNT","RATE_DAILY","PERIOD"]
[424353017,1780782641000,-500.0,0.00014999,2]
[424353015,1780782641000,-500.0,0.00014999,2]
[424353014,1780782641000,-500.0,0.00014999,2]
[424353012,1780782641000,-500.0,0.00014999,2]
[424353008,1780782641000,-500.0,0.00014999,2]
[424353003,1780782641000,-500.0,0.00014999,2]
[424353010,1780782641000,-500.0,0.00014999,2]
[424353009,1780782641000,-500.0,0.00014999,2]
[424353006,1780782641000,-500.0,0.00014999,2]
[424353005,1780782641000,-500.0,0.00014999,2]
[424353011,1780782641000,-500.0,0.00014999,2]
[424353004,1780782641000,-500.0,0.00014999,2]
[424353061,1780782642000,-2852.4744475,0.00015,2]
[424353060,1780782642000,-775.12250009,0.00015,2]
[424353059,1780782642000,-572.63380001,0.00015,2]
[424353089,1780782647000,-1000.0,0.00015,2]
[424353087,1780782647000,-1000.0,0.00015,2]
[424353085,1780782647000,-1000.0,0.00015,2]
[424353088,1780782647000,-1000.0,0.00015,2]
[424353090,1780782647000,-1000.0,0.00015,2]
[424353097,1780782647000,-1000.0,0.00015,2]
[424353093,1780782647000,-1000.0,0.00015,2]
[424353092,1780782647000,-1000.0,0.00015,2]
[424353096,1780782647000,-1000.0,0.00015,2]
[424353095,1780782647000,-1000.0,0.00015,2]
[424353094,1780782647000,-1000.0,0.00015,2]
[424353086,1780782647000,-1000.0,0.00015,2]
[424353091,1780782647000,-1000.0,0.00015,2]
[424353084,1780782647000,-1000.0,0.00015,2]
[424353075,1780782647000,-1000.0,0.00015,2]
[424353083,1780782647000,-1000.0,0.00015,2]
[424353080,1780782647000,-1000.0,0.00015,2]
[424353081,1780782647000,-1000.0,0.00015,2]
[424353079,1780782647000,-1000.0,0.00015,2]
[424353077,1780782647000,-1000.0,0.00015,2]
[424353078,1780782647000,-1000.0,0.00015,2]
[424353076,1780782647000,-1000.0,0.00015,2]
[424353074,1780782647000,-1755.97,0.00015,2]
[424353072,1780782647000,-151.0,0.00015,2]
[424353073,1780782647000,-170.82,0.00015,2]
[424353070,1780782647000,-452.0,0.00013908,2]
[424353071,1780782647000,-9892036.45417206,0.00015,2]
[424353082,1780782647000,-1000.0,0.00015,2]
[424353099,1780782647000,-201.6412839,0.00015,2]
[424353100,1780782647000,-200.0,0.00015,2]
[424353129,1780782647000,-500.0,0.00015,2]
[424353130,1780782647000,-500.0,0.00015,2]
[424353127,1780782647000,-500.0,0.00015,2]
[424353128,1780782647000,-500.0,0.00015,2]
[424353126,1780782647000,-500.0,0.00015,2]
[424353124,1780782647000,-500.0,0.00015,2]
[424353125,1780782647000,-500.0,0.00015,2]
[424353123,1780782647000,-500.0,0.00015,2]
[424353121,1780782647000,-500.0,0.00015,2]
[424353119,1780782647000,-500.0,0.00015,2]
[424353118,1780782647000,-500.0,0.00015,2]
[424353122,1780782647000,-500.0,0.00015,2]
[424353120,1780782647000,-500.0,0.00015,2]
[424353117,1780782647000,-500.0,0.00015,2]
[424353114,1780782647000,-500.0,0.00015,2]
[424353116,1780782647000,-500.0,0.00015,2]
[424353112,1780782647000,-151.0,0.00015,2]
[424353102,1780782647000,-151.0,0.00015,2]
[424353115,1780782647000,-500.0,0.00015,2]
[424353101,1780782647000,-200.0,0.00015,2]
[424353108,1780782647000,-151.0,0.00015,2]
[424353106,1780782647000,-2000.0,0.00015,2]
[424353109,1780782647000,-151.0,0.00015,2]
[424353103,1780782647000,-151.0,0.00015,2]
[424353098,1780782647000,-1000.0,0.00015,2]
[424353105,1780782647000,-200.0,0.00015,2]
[424353107,1780782647000,-151.0,0.00015,2]
[424353111,1780782647000,-151.0,0.00015,2]
[424353110,1780782647000,-151.0,0.00015,2]
[424353113,1780782647000,-500.0,0.00015,2]
[424353104,1780782647000,-151.0,0.00015,2]
[424353173,1780782648000,-1555.5,0.00015416,2]
[424353172,1780782648000,-2000.0,0.000154,2]
[424353171,1780782648000,-166.66,0.00015386,2]
[424353169,1780782648000,-14204.87,0.0001531,2]
[424353166,1780782648000,-2510.11,0.0001531,2]
[424353170,1780782648000,-8762.75,0.0001531,2]
[424353167,1780782648000,-1365.93,0.0001531,2]
[424353165,1780782648000,-1953.39,0.0001531,2]
[424353164,1780782648000,-200.0,0.00015301,2]
[424353162,1780782648000,-200.0,0.00015301,2]
[424353174,1780782648000,-1068.11,0.00015416,2]
[424353168,1780782648000,-3751.59,0.0001531,2]
[424353163,1780782648000,-200.0,0.00015301,2]
[424353188,1780782648000,-300.0,0.00015722,2]
[424353175,1780782648000,-150.0,0.00015449,2]
[424353177,1780782648000,-200.0,0.00015455,2]
[424353178,1780782648000,-200.0,0.00015455,2]
[424353180,1780782648000,-500.0,0.00015521,2]
[424353183,1780782648000,-200.0,0.00015609,2]
[424353181,1780782648000,-565.32475062,0.00015521,2]
[424353179,1780782648000,-350.0,0.00015478,2]
[424353182,1780782648000,-2000.0,0.000156,2]
[424353184,1780782648000,-200.0,0.00015609,2]
[424353185,1780782648000,-200.0,0.00015609,2]
[424353186,1780782648000,-666.0,0.00015698,2]
[424353187,1780782648000,-300.0,0.00015698,2]
[424353161,1780782648000,-1517.64,0.000153,2]
[424353176,1780782648000,-200.0,0.00015455,2]
[424353157,1780782648000,-200.0,0.0001515,2]
[424353142,1780782648000,-157.324506,0.00015068,2]
[424353154,1780782648000,-1000.0,0.000151,2]
[424353135,1780782648000,-152.0,0.00015,2]
[424353132,1780782648000,-500.0,0.00015,2]
[424353133,1780782648000,-505.862562,0.00015,2]
[424353134,1780782648000,-194.16960397,0.00015,2]
[424353131,1780782648000,-500.0,0.00015,2]
[424353137,1780782648000,-152.0,0.00015,2]
[424353136,1780782648000,-152.0,0.00015,2]
[424353138,1780782648000,-154.55676498,0.00015,2]
[424353140,1780782648000,-216.71227622,0.00015062,10]
[424353147,1780782648000,-151.0,0.00015068,2]
[424353139,1780782648000,-151.0,0.00015,2]
[424353141,1780782648000,-235.06560542,0.00015062,10]
[424353158,1780782648000,-155.09,0.00015164,2]
[424353146,1780782648000,-151.0,0.00015068,2]
[424353143,1780782648000,-900.0,0.00015068,2]
[424353144,1780782648000,-151.0,0.00015068,2]
[424353148,1780782648000,-500.0,0.00015068,2]
[424353149,1780782648000,-500.0,0.00015068,2]
[424353150,1780782648000,-500.0,0.00015068,2]
[424353160,1780782648000,-2000.0,0.000152,2]
[424353151,1780782648000,-315.0,0.000151,2]
[424353152,1780782648000,-200.0,0.000151,2]
[424353153,1780782648000,-309.0,0.000151,2]
[424353159,1780782648000,-499.49653761,0.00015164,10]
[424353155,1780782648000,-200.0,0.0001515,2]
[424353156,1780782648000,-200.0,0.0001515,2]
[424353145,1780782648000,-151.0,0.00015068,2]
[424353194,1780782648000,-666.0,0.00015722,2]
[424353221,1780782648000,-2000.0,0.00015723,2]
[424353195,1780782648000,-300.0,0.00015722,2]
[424353223,1780782648000,-2000.0,0.00015723,2]
[424353225,1780782648000,-2000.0,0.00015723,2]
[424353227,1780782648000,-2000.0,0.00015723,2]
[424353226,1780782648000,-2000.0,0.00015723,2]
[424353232,1780782648000,-2000.0,0.00015723,2]
[424353231,1780782648000,-2000.0,0.00015723,2]
[424353229,1780782648000,-2000.0,0.00015723,2]
[424353230,1780782648000,-319.66,0.00015723,2]
[424353228,1780782648000,-2000.0,0.00015723,2]
[424353233,1780782648000,-2000.0,0.00015723,2]
[424353235,1780782648000,-2000.0,0.00015723,2]
[424353236,1780782648000,-2000.0,0.00015723,2]
[424353238,1780782648000,-2000.0,0.00015723,2]
[424353237,1780782648000,-2000.0,0.00015723,2]
[424353241,1780782648000,-2000.0,0.00015723,2]
[424353240,1780782648000,-2000.0,0.00015723,2]
[424353242,1780782648000,-2000.0,0.00015723,2]
[424353239,1780782648000,-591.79,0.00015723,2]
[424353244,1780782648000,-2000.0,0.00015723,2]
[424353245,1780782648000,-1502.6,0.00015723,2]
[424353243,1780782648000,-2000.0,0.00015723,2]
[424353247,1780782648000,-2000.0,0.00015723,2]
[424353246,1780782648000,-2000.0,0.00015723,2]
[424353248,1780782648000,-2000.0,0.00015723,2]
[424353250,1780782648000,-2000.0,0.00015723,2]
[424353249,1780782648000,-2000.0,0.00015723,2]
[424353191,1780782648000,-300.0,0.00015722,2]
[424353224,1780782648000,-2000.0,0.00015723,2]
[424353220,1780782648000,-2000.0,0.00015723,2]
[424353234,1780782648000,-2000.0,0.00015723,2]
[424353219,1780782648000,-2000.0,0.00015723,2]
[424353222,1780782648000,-2000.0,0.00015723,2]
[424353190,1780782648000,-300.0,0.00015722,2]
[424353189,1780782648000,-300.0,0.00015722,2]
[424353196,1780782648000,-2000.0,0.00015723,2]
[424353193,1780782648000,-300.0,0.00015722,2]
[424353197,1780782648000,-2000.0,0.00015723,2]
[424353198,1780782648000,-2000.0,0.00015723,2]
[424353199,1780782648000,-2000.0,0.00015723,2]
[424353203,1780782648000,-2000.0,0.00015723,2]
[424353202,1780782648000,-2000.0,0.00015723,2]
[424353207,1780782648000,-2000.0,0.00015723,2]
[424353204,1780782648000,-2000.0,0.00015723,2]
[424353205,1780782648000,-2000.0,0.00015723,2]
[424353200,1780782648000,-2000.0,0.00015723,2]
[424353192,1780782648000,-300.0,0.00015722,2]
[424353208,1780782648000,-2000.0,0.00015723,2]
[424353201,1780782648000,-2000.0,0.00015723,2]
[424353218,1780782648000,-2000.0,0.00015723,2]
[424353217,1780782648000,-2000.0,0.00015723,2]
[424353214,1780782648000,-367.18,0.00015723,2]
[424353216,1780782648000,-2000.0,0.00015723,2]
[424353211,1780782648000,-2000.0,0.00015723,2]
[424353215,1780782648000,-2000.0,0.00015723,2]
[424353212,1780782648000,-2000.0,0.00015723,2]
[424353210,1780782648000,-2000.0,0.00015723,2]
[424353209,1780782648000,-2000.0,0.00015723,2]
[424353206,1780782648000,-2000.0,0.00015723,2]
[424353213,1780782648000,-2000.0,0.00015723,2]
[424353292,1780782649000,-1000.0,0.00015723,2]
[424353290,1780782649000,-1000.0,0.00015723,2]
[424353293,1780782649000,-1000.0,0.00015723,2]
[424353294,1780782649000,-1000.0,0.00015723,2]
[424353289,1780782649000,-1000.0,0.00015723,2]
[424353285,1780782649000,-1000.0,0.00015723,2]
[424353287,1780782649000,-1000.0,0.00015723,2]
[424353288,1780782649000,-458.49,0.00015723,2]
[424353286,1780782649000,-1000.0,0.00015723,2]
[424353284,1780782649000,-1000.0,0.00015723,2]
[424353296,1780782649000,-1000.0,0.00015723,2]
[424353277,1780782649000,-1000.0,0.00015723,2]
[424353291,1780782649000,-1000.0,0.00015723,2]
[424353295,1780782649000,-1000.0,0.00015723,2]
[424353301,1780782649000,-274.37,0.00015723,2]
[424353299,1780782649000,-1000.0,0.00015723,2]
[424353298,1780782649000,-1000.0,0.00015723,2]
[424353300,1780782649000,-1000.0,0.00015723,2]
[424353305,1780782649000,-1000.0,0.00015723,2]
[424353307,1780782649000,-1000.0,0.00015723,2]
[424353302,1780782649000,-1000.0,0.00015723,2]
[424353306,1780782649000,-1000.0,0.00015723,2]
[424353303,1780782649000,-1000.0,0.00015723,2]
[424353304,1780782649000,-1000.0,0.00015723,2]
[424353309,1780782649000,-364.62,0.00015723,2]
[424353310,1780782649000,-350.0,0.00015726,2]
[424353308,1780782649000,-1000.0,0.00015723,2]
[424353283,1780782649000,-1000.0,0.00015723,2]
[424353297,1780782649000,-1000.0,0.00015723,2]
[424353279,1780782649000,-1000.0,0.00015723,2]
[424353253,1780782649000,-1626.08,0.00015723,2]
[424353282,1780782649000,-1000.0,0.00015723,2]
[424353312,1780782649000,-350.0,0.00015752,2]
[424353254,1780782649000,-2000.0,0.00015723,2]
[424353251,1780782649000,-2000.0,0.00015723,2]
[424353257,1780782649000,-1000.0,0.00015723,2]
[424353255,1780782649000,-1000.0,0.00015723,2]
[424353252,1780782649000,-2000.0,0.00015723,2]
[424353258,1780782649000,-2000.0,0.00015723,2]
[424353256,1780782649000,-2000.0,0.00015723,2]
[424353260,1780782649000,-1000.0,0.00015723,2]
[424353261,1780782649000,-1000.0,0.00015723,2]
[424353259,1780782649000,-1000.0,0.00015723,2]
[424353263,1780782649000,-1000.0,0.00015723,2]
[424353262,1780782649000,-2000.0,0.00015723,2]
[424353281,1780782649000,-1000.0,0.00015723,2]
[424353265,1780782649000,-1000.0,0.00015723,2]
[424353264,1780782649000,-1375.66,0.00015723,2]
[424353270,1780782649000,-1000.0,0.00015723,2]
[424353267,1780782649000,-1000.0,0.00015723,2]
[424353269,1780782649000,-1000.0,0.00015723,2]
[424353268,1780782649000,-1000.0,0.00015723,2]
[424353271,1780782649000,-1000.0,0.00015723,2]
[424353273,1780782649000,-1000.0,0.00015723,2]
[424353272,1780782649000,-1000.0,0.00015723,2]
[424353274,1780782649000,-1000.0,0.00015723,2]
[424353276,1780782649000,-1000.0,0.00015723,2]
[424353275,1780782649000,-1000.0,0.00015723,2]
[424353278,1780782649000,-1000.0,0.00015723,2]
[424353280,1780782649000,-1000.0,0.00015723,2]
[424353266,1780782649000,-1000.0,0.00015723,2]
[424353314,1780782649000,-155.09,0.00015796,2]
[424353351,1780782649000,-151.0,0.00016438,2]
[424353313,1780782649000,-350.0,0.00015768,2]
[424353346,1780782649000,-1506.53256963,0.000164,2]
[424353348,1780782649000,-155.09,0.00016428,2]
[424353350,1780782649000,-151.0,0.00016438,2]
[424353376,1780782649000,-1012.880522,0.00016438,2]
[424353349,1780782649000,-279.7,0.00016438,2]
[424353352,1780782649000,-151.0,0.00016438,2]
[424353354,1780782649000,-151.0,0.00016438,2]
[424353359,1780782649000,-151.0,0.00016438,2]
[424353357,1780782649000,-151.0,0.00016438,2]
[424353356,1780782649000,-151.0,0.00016438,2]
[424353358,1780782649000,-151.0,0.00016438,2]
[424353353,1780782649000,-151.0,0.00016438,2]
[424353355,1780782649000,-151.0,0.00016438,2]
[424353347,1780782649000,-500.0,0.00016425,2]
[424353360,1780782649000,-151.0,0.00016438,2]
[424353362,1780782649000,-151.0,0.00016438,2]
[424353363,1780782649000,-151.0,0.00016438,2]
[424353365,1780782649000,-151.0,0.00016438,2]
[424353364,1780782649000,-151.0,0.00016438,2]
[424353366,1780782649000,-151.0,0.00016438,2]
[424353370,1780782649000,-198.697,0.00016438,2]
[424353368,1780782649000,-151.0,0.00016438,2]
[424353367,1780782649000,-273.641047,0.00016438,2]
[424353369,1780782649000,-151.0,0.00016438,2]
[424353372,1780782649000,-900.0,0.00016438,2]
[424353374,1780782649000,-1012.880522,0.00016438,2]
[424353373,1780782649000,-1012.880522,0.00016438,2]
[424353375,1780782649000,-1012.880522,0.00016438,2]
[424353361,1780782649000,-151.0,0.00016438,2]
[424353344,1780782649000,-200.0,0.0001634,2]
[424353371,1780782649000,-155.784892,0.00016438,2]
[424353341,1780782649000,-11456.23,0.000162,2]
[424353345,1780782649000,-258.83319911,0.00016398,2]
[424353311,1780782649000,-350.0,0.00015747,2]
[424353317,1780782649000,-350.0,0.00015879,2]
[424353318,1780782649000,-350.0,0.00015887,2]
[424353319,1780782649000,-350.0,0.0001592,2]
[424353316,1780782649000,-2275.15039142,0.00015807,2]
[424353320,1780782649000,-2000.0,0.00015949,2]
[424353321,1780782649000,-1107.63007,0.00015964,2]
[424353322,1780782649000,-1613.0535,0.00015964,2]
[424353323,1780782649000,-500.0,0.00015973,2]
[424353324,1780782649000,-499.49653761,0.00015986,10]
[424353329,1780782649000,-2000.0,0.00016,2]
[424353328,1780782649000,-215.80795776,0.00016,3]
[424353331,1780782649000,-301.79013786,0.00016,2]
[424353315,1780782649000,-2000.0,0.000158,2]
[424353326,1780782649000,-779.1455433,0.00016,2]
[424353330,1780782649000,-150.0,0.00016,2]
[424353342,1780782649000,-1506.53256963,0.000162,2]
[424353336,1780782649000,-300.0,0.00016115,2]
[424353338,1780782649000,-9999.99,0.00016116,2]
[424353337,1780782649000,-300.0,0.00016115,2]
[424353339,1780782649000,-350.0,0.00016166,2]
[424353340,1780782649000,-350.0,0.00016182,2]
[424353343,1780782649000,-301.79013786,0.000162,2]
[424353334,1780782649000,-300.0,0.00016115,2]
[424353332,1780782649000,-301.79013786,0.000161,2]
[424353333,1780782649000,-300.0,0.00016115,2]
[424353327,1780782649000,-300.0,0.00016,2]
[424353335,1780782649000,-300.0,0.00016115,2]
[424353325,1780782649000,-350.0,0.00015991,2]
[424353411,1780782650000,-220.0,0.00017198,2]
[424353408,1780782650000,-200.0,0.00017198,2]
[424353412,1780782650000,-247.689,0.00017198,2]
[424353410,1780782650000,-208.631,0.00017198,2]
[424353406,1780782650000,-3642.0,0.00017147,2]
[424353405,1780782650000,-933.0,0.00017147,2]
[424353404,1780782650000,-382.0,0.00017147,2]
[424353414,1780782650000,-250.0,0.00017198,2]
[424353409,1780782650000,-250.0,0.00017198,2]
[424353407,1780782650000,-150.0,0.00017198,2]
[424353419,1780782650000,-167.462,0.00017198,2]
[424353413,1780782650000,-242.103,0.00017198,2]
[424353416,1780782650000,-250.0,0.00017198,2]
[424353418,1780782650000,-195.226,0.00017198,2]
[424353417,1780782650000,-246.38,0.00017198,2]
[424353402,1780782650000,-1274.0,0.00017147,2]
[424353421,1780782650000,-189.0,0.00017198,2]
[424353424,1780782650000,-249.7482688,0.00017356,10]
[424353422,1780782650000,-1506.53256963,0.000172,2]
[424353425,1780782650000,-1506.53256963,0.000174,2]
[424353423,1780782650000,-500.0,0.00017329,2]
[424353420,1780782650000,-250.0,0.00017198,2]
[424353415,1780782650000,-167.5,0.00017198,2]
[424353403,1780782650000,-1227.0,0.00017147,2]
[424353392,1780782650000,-1191.11104074,0.0001706,2]
[424353400,1780782650000,-3554.0,0.00017147,2]
[424353427,1780782650000,-1506.53256963,0.000176,2]
[424353380,1780782650000,-1672.7364795,0.00016512,2]
[424353379,1780782650000,-1148.61238259,0.00016512,2]
[424353378,1780782650000,-1506.53256963,0.000165,2]
[424353377,1780782650000,-1000.0,0.000165,2]
[424353382,1780782650000,-1506.53256963,0.000167,2]
[424353381,1780782650000,-1755.97,0.000166,2]
[424353383,1780782650000,-168.33,0.00016712,2]
[424353384,1780782650000,-2000.0,0.0001679,2]
[424353386,1780782650000,-191.0,0.000168,3]
[424353401,1780782650000,-165.347,0.00017147,2]
[424353385,1780782650000,-500.0,0.0001679,2]
[424353387,1780782650000,-500.0,0.00016877,2]
[424353391,1780782650000,-155.09,0.0001706,2]
[424353390,1780782650000,-1506.53256963,0.00017,2]
[424353395,1780782650000,-300.0,0.00017146,2]
[424353393,1780782650000,-1734.62772924,0.0001706,2]
[424353394,1780782650000,-666.0,0.00017146,2]
[424353396,1780782650000,-300.0,0.00017146,2]
[424353397,1780782650000,-300.0,0.00017146,2]
[424353398,1780782650000,-413.05991736,0.00017146,2]
[424353399,1780782650000,-1358.0,0.00017147,2]
[424353389,1780782650000,-1159.39304982,0.00017,2]
[424353388,1780782650000,-1506.53256963,0.000169,2]
[424353426,1780782650000,-2000.0,0.00017544,2]
[424353429,1780782650000,-1798.80895522,0.00017608,2]
[424353455,1780782650000,-1081.49257164,0.00018,2]
[424353458,1780782650000,-365.57,0.0001814,2]
[424353461,1780782650000,-1242.77883093,0.000182,2]
[424353460,1780782650000,-1865.36488656,0.00018156,2]
[424353462,1780782650000,-1081.49257164,0.000182,2]
[424353459,1780782650000,-1280.88388877,0.00018156,2]
[424353463,1780782650000,-500.0,0.00018233,2]
[424353466,1780782650000,-1081.49257164,0.000184,2]
[424353464,1780782650000,-1242.77883093,0.000184,2]
[424353465,1780782650000,-1755.97,0.000184,2]
[424353457,1780782650000,-530.04734895,0.00018014,2]
[424353467,1780782650000,-231.0152019,0.000184,2]
[424353468,1780782650000,-231.01520189,0.000184,2]
[424353474,1780782650000,-1242.77883093,0.000187,2]
[424353471,1780782650000,-1242.77883093,0.000185,2]
[424353475,1780782650000,-1081.49257164,0.000187,2]
[424353473,1780782650000,-150.0,0.00018568,2]
[424353472,1780782650000,-1081.49257164,0.000185,2]
[424353477,1780782650000,-1934.38338736,0.00018704,2]
[424353478,1780782650000,-1242.77883093,0.000189,2]
[424353476,1780782650000,-1328.27659266,0.00018704,2]
[424353428,1780782650000,-1235.18214925,0.00017608,2]
[424353470,1780782650000,-279.7,0.0001841,2]
[424353454,1780782650000,-1242.77883093,0.00018,2]
[424353469,1780782650000,-231.01520189,0.000184,2]
[424353453,1780782650000,-172.05861451,0.00018,2]
[424353430,1780782650000,-794.10843908,0.000177,2]
[424353456,1780782650000,-350.0,0.00018,2]
[424353432,1780782650000,-1506.53256963,0.000177,2]
[424353436,1780782650000,-152.0,0.00017797,2]
[424353437,1780782650000,-151.0,0.00017797,2]
[424353431,1780782650000,-512.48,0.000177,7]
[424353438,1780782650000,-151.0,0.00017797,2]
[424353435,1780782650000,-152.0,0.00017797,2]
[424353434,1780782650000,-152.0,0.00017797,2]
[424353439,1780782650000,-151.0,0.00017797,2]
[424353441,1780782650000,-151.0,0.00017797,2]
[424353433,1780782650000,-500.0,0.00017781,2]
[424353443,1780782650000,-198.86658173,0.00017797,2]
[424353451,1780782650000,-169.65,0.00017859,2]
[424353440,1780782650000,-151.0,0.00017797,2]
[424353446,1780782650000,-151.0,0.00017797,2]
[424353448,1780782650000,-151.0,0.00017797,2]
[424353449,1780782650000,-152.51,0.000178,2]
[424353447,1780782650000,-151.0,0.00017797,2]
[424353450,1780782650000,-169.65,0.00017859,2]
[424353445,1780782650000,-415.19954729,0.00017797,2]
[424353442,1780782650000,-151.0,0.00017797,2]
[424353444,1780782650000,-1548.0,0.00017797,2]
[424353452,1780782650000,-249.14,0.00018,2]
[424353518,1780782651000,-200.0,0.000198,2]
[424353521,1780782651000,-200.0,0.000198,2]
[424353519,1780782651000,-151.0,0.000198,2]
[424353522,1780782651000,-151.0,0.000198,2]
[424353520,1780782651000,-693.3919763,0.000198,2]
[424353523,1780782651000,-1000.0,0.000198,2]
[424353516,1780782651000,-151.0,0.000198,2]
[424353515,1780782651000,-151.0,0.000198,2]
[424353517,1780782651000,-151.0,0.000198,2]
[424353512,1780782651000,-693.39197629,0.000198,2]
[424353526,1780782651000,-500.0,0.000198,2]
[424353514,1780782651000,-151.0,0.000198,2]
[424353542,1780782651000,-627.32764209,0.000198,2]
[424353525,1780782651000,-1000.0,0.000198,2]
[424353536,1780782651000,-151.0,0.000198,2]
[424353529,1780782651000,-1428.38747117,0.000198,2]
[424353530,1780782651000,-1000.0,0.000198,2]
[424353531,1780782651000,-151.0,0.000198,2]
[424353532,1780782651000,-1000.0,0.000198,2]
[424353528,1780782651000,-1000.0,0.000198,2]
[424353534,1780782651000,-151.0,0.000198,2]
[424353537,1780782651000,-1000.0,0.000198,2]
[424353535,1780782651000,-1000.0,0.000198,2]
[424353533,1780782651000,-209.40437684,0.000198,2]
[424353539,1780782651000,-151.0,0.000198,2]
[424353538,1780782651000,-151.0,0.000198,2]
[424353540,1780782651000,-1000.0,0.000198,2]
[424353513,1780782651000,-209.40437684,0.000198,2]
[424353527,1780782651000,-151.0,0.000198,2]
[424353511,1780782651000,-174.61919141,0.000198,2]
[424353481,1780782651000,-666.0,0.00018999,2]
[424353509,1780782651000,-300.0,0.00019798,2]
[424353480,1780782651000,-1125.0,0.00018962,2]
[424353479,1780782651000,-1081.49257164,0.000189,2]
[424353482,1780782651000,-300.0,0.00018999,2]
[424353483,1780782651000,-300.0,0.00018999,2]
[424353484,1780782651000,-17162.66500956,0.00019,2]
[424353485,1780782651000,-1830.1760119,0.00019,2]
[424353486,1780782651000,-1242.77883093,0.000191,2]
[424353488,1780782651000,-500.0,0.00019106,2]
[424353487,1780782651000,-1081.49257164,0.000191,2]
[424353489,1780782651000,-2000.0,0.00019139,2]
[424353490,1780782651000,-151.0,0.00019178,2]
[424353493,1780782651000,-151.0,0.00019178,2]
[424353494,1780782651000,-1377.42282658,0.00019252,2]
[424353492,1780782651000,-151.0,0.00019178,2]
[424353491,1780782651000,-151.0,0.00019178,2]
[424353497,1780782651000,-1081.49257164,0.000193,2]
[424353496,1780782651000,-1242.77883093,0.000193,2]
[424353495,1780782651000,-2005.9555727,0.00019252,2]
[424353498,1780782651000,-1933.01,0.00019339,2]
[424353500,1780782651000,-1242.77883093,0.000195,2]
[424353499,1780782651000,-283.97,0.00019405,2]
[424353501,1780782651000,-1081.49257164,0.000195,2]
[424353502,1780782651000,-1012.01286119,0.00019591,2]
[424353506,1780782651000,-1081.49257164,0.000197,2]
[424353507,1780782651000,-1548.0,0.00019755,2]
[424353503,1780782651000,-500.0,0.00019591,2]
[424353505,1780782651000,-1242.77883093,0.000197,2]
[424353504,1780782651000,-500.0,0.00019679,2]
[424353508,1780782651000,-682.36022223,0.00019798,2]
[424353510,1780782651000,-300.0,0.00019799,2]
[424353543,1780782651000,-2080.17592889,0.000198,2]
[424353524,1780782651000,-578.20924308,0.000198,2]
[424353544,1780782651000,-209.40437684,0.000198,2]
[424353578,1780782651000,-151.0,0.000198,2]
[424353579,1780782651000,-151.0,0.000198,2]
[424353581,1780782651000,-152.0,0.000198,2]
[424353582,1780782651000,-151.0,0.000198,2]
[424353580,1780782651000,-500.0,0.000198,2]
[424353583,1780782651000,-151.0,0.000198,2]
[424353584,1780782651000,-500.0,0.000198,2]
[424353585,1780782651000,-152.0,0.000198,2]
[424353586,1780782651000,-151.0,0.000198,2]
[424353590,1780782651000,-151.0,0.000198,2]
[424353587,1780782651000,-151.0,0.000198,2]